Cogmind - Beta 12 @@@ ROGUE MODE // 2023.03.10 @ 03:10:19 Player: Red Box Result: Destroyed by as-07918 with Assembled Focal Cannon Performance ------------- Evolutions (4) 2000 Regions Visited (20) 4000 Robots Destroyed (311) 1555 Value Destroyed (12907) 12907 Prototype IDs (61) 1220 Alien Tech Used (0) 0 Bonus (6344) 6344 TOTAL SCORE: 28026 Bonus ------- High Alert Combat Kills 3400 Follower Combat Kills 1444 Entered Garrisons 400 Met Data Miner 300 Met Imprinter 300 Destroyed Z-Imprinter 1000 Triggered Deep Caves Wall 500 Exposed GOLEM Chamber 500 Friendly Fire -1500 Cogmind --------- Core Integrity 0/850 Matter 248/300 Energy 448/1000 System Corruption 5% Temperature Cool (40) Movement Treading (240) Ox1 Location -6/Deep Caves Parts ------- > --- POWER (1) -------- F-cell Engine > --- PROPULSION (2) --- Medium Treads Medium Treads > --- UTILITY (9) ------ Experimental Heat Sink High-capacity Storage Unit Advanced Energy Well Experimental Sensor Array (fused) Advanced Signal Interpreter Improved Heavy Armor Plating Mobile Refinery Mk. CCLXVII > --- WEAPON (3) ------- Coil Gun Enhanced Gauss Cannon Gamma Bomb Array > --- INVENTORY (20) --- Zionite Light DM Reactor High-capacity Storage Unit Zionite Biocell Matter Compressor (250) Improved Particle Charger Mobile Assembly Unit Gamma Rifle Zionite Laser-M Zionite Laser-M Nova Cannon Hypervelocity Gauss Cannon Hypervelocity Gauss Cannon Linear Accelerator Linear Accelerator Fusion Bomb Launcher Peak State ------------ > --- POWER ------------ F-cell Engine > --- PROPULSION ------- Medium Treads Biometal Medium Treads > --- UTILITY ---------- Experimental Heat Sink High-capacity Storage Unit Enhanced Optical Array Experimental Sensor Array Experimental Reaction Control System Improved Medium Armor Plating Mobile Refinery Mk. CCLXVII Bomb Factory No. 2 > --- WEAPON ----------- Zionite Laser-M Coil Gun Coil Gun > --- INVENTORY -------- Medium Treads Experimental Heat Sink High-capacity Storage Unit Advanced Energy Well Zionite Biocell Matter Compressor Advanced Signal Interpreter Improved Particle Charger Zionite Weapon Casing Remote Force Field Zionite Laser-S Zionite Laser-M Quantum Rifle Linear Accelerator Linear Accelerator Gamma Bomb Array Fusion Bomb Launcher Dirty Bomb Trap [Rating: 100] Favorites ----------- Power Heavy Ion Engine Engine Heavy Ion Engine Power Core Neutrino Core Reactor Zionite Light DM Reactor Propulsion Armored Wheel Treads Biometal Medium Treads Leg Carbon-fiber Leg Wheel Armored Wheel Utility High-capacity Storage Unit Device Improved Heat Sink Storage High-capacity Storage Unit Processor Advanced Targeting Computer Hackware System Shield Protection Improved Medium Armor Plating Weapon Coil Gun Energy Gun Quantum Rifle Energy Cannon Particle Cannon Ballistic Gun Coil Gun Ballistic Cannon Bore Cannon Launcher Fusion Bomb Launcher Special Weapon Plasma Cutter Impact Weapon Heavy Mace Slashing Weapon Chainsword Build | -11 -10 -10 -9 -9 -9 -8 -8 -8 -8 -7 -7 -7 -7 -6 -6 -6 -6 -6 -6 -6 ------- Run | Jun Mat Min Mat Min Exi Min Mat Gar Sto Fac Low Low Dat Pro Fac Gar Fac Low Zio Dee Slots Evolved 8 | . . . 2 . . . 2 . . 2 . . . . 2 . . . . . Power . | . . . . . . . . . . . . . . . . . . . . . Propulsion . | . . . . . . . . . . . . . . . . . . . . . Utility 7 | . . . 2 . . . 2 . . 2 . . . . 1 . . . . . Weapon 1 | . . . . . . . . . . . . . . . 1 . . . . . Parts Attached 484 | 9 13 12 30 11 6 16 54 37 49 54 22 4 2 11 23 59 24 2 12 34 Power 27 | 1 1 2 5 . . 1 1 2 2 3 . 2 . . . 3 . . . 4 Engine 24 | 1 1 2 5 . . 1 1 2 2 3 . 2 . . . 2 . . . 2 Core 1 | . . . . . . . . . . . . . . . . 1 . . . . Reactor 2 | . . . . . . . . . . . . . . . . . . . . 2 Propulsion 43 | 4 4 3 5 1 . 1 4 1 6 3 . . . . . 7 1 . 1 2 Treads 14 | . 1 . . . . . . 1 2 1 . . . . . 5 1 . 1 2 Leg 4 | 2 . . . . . . . . . . . . . . . 2 . . . . Wheel 25 | 2 3 3 5 1 . 1 4 . 4 2 . . . . . . . . . . Hover . | . . . . . . . . . . . . . . . . . . . . . Flight . | . . . . . . . . . . . . . . . . . . . . . Utility 182 | 2 2 4 8 6 2 3 20 13 15 19 15 . . 4 13 21 13 2 6 14 Device 107 | 1 1 2 2 4 1 1 14 10 6 11 7 . . 1 12 14 9 2 4 5 Storage 11 | 1 1 . . . . . 1 . 1 . 5 . . 1 . . . . . 1 Processor 13 | . . . 1 . . 2 . 1 1 1 1 . . . . 1 3 . 1 1 Hackware 5 | . . . . . . . 1 . 1 3 . . . . . . . . . . Protection 46 | . . 2 5 2 1 . 4 2 6 4 2 . . 2 1 6 1 . 1 7 Artifact . | . . . . . . . . . . . . . . . . . . . . . Weapon 232 | 2 6 3 12 4 4 11 29 21 26 29 7 2 2 7 10 28 10 . 5 14 Energy Gun 84 | 2 2 . 7 2 1 4 4 9 15 9 1 . 1 4 2 10 3 . 2 6 Energy Cannon 29 | . 2 2 5 . . . . 3 . 2 3 1 1 1 1 5 2 . 1 . Ballistic Gun 33 | . . . . . 1 1 16 . 1 9 . . . . 1 . 2 . 2 . Ballistic Cannon 19 | . . . . . . 3 . 3 1 . . . . . 4 6 . . . 2 Launcher 46 | . 1 1 . 2 . 2 3 5 6 6 3 1 . 2 2 3 3 . . 6 Special Weapon 2 | . 1 . . . 1 . . . . . . . . . . . . . . . Impact Weapon 12 | . . . . . . 1 6 1 . . . . . . . 4 . . . . Slashing Weapon 7 | . . . . . 1 . . . 3 3 . . . . . . . . . . Piercing Weapon . | . . . . . . . . . . . . . . . . . . . . . Special Melee Weapon . | . . . . . . . . . . . . . . . . . . . . . Unidentified Prototypes 19 | . . . 3 . . . 3 . 1 . . . . 2 . . . . 2 8 Corrupted Parts 6 | . . . . . . 2 . . 1 . 1 . . 2 . . . . . . System Corruption 36 | . . . . . . 7 . . 6 . 7 . . 16 . . . . . . Parts Lost 100 | . 3 5 6 . . 4 4 8 21 11 1 . . 1 . 24 . . . 12 Power 9 | . 1 1 1 . . 1 . 1 1 1 . . . . . 1 . . . 1 Propulsion 20 | . 2 1 2 . . 1 2 1 4 2 . . . . . 3 . . . 2 Utility 43 | . . 1 1 . . . 1 4 9 4 . . . . . 16 . . . 7 Weapon 28 | . . 2 2 . . 2 1 2 7 4 1 . . 1 . 4 . . . 2 Highest Loss Streak 10 | . 2 3 1 . . 1 1 2 10 8 1 . . 1 . 7 . . . 7 To Critical Strikes 1 | . . . . . . . . . 1 . . . . . . . . . . . Average Slot Usage (%) 94 | . 99 96 99 99 87 98 99 96 91 97 91 92 76 91 92 84 99 100 97 89 Engine 6 | . 13 11 10 11 11 10 9 8 8 6 7 7 7 7 6 5 . . . 3 Core 1 | . . . . . . . . . . . . . . . . . 6 6 6 . Treads 4 | . 4 . . . . . . 2 3 2 . . . . . 9 11 13 13 12 Wheel 9 | . 23 27 21 21 22 21 17 15 14 10 7 7 7 7 6 1 . . . . Device 23 | . 14 7 13 17 25 16 12 25 17 19 24 23 23 23 31 25 37 33 33 26 Storage 8 | . 14 14 11 11 11 11 9 9 12 7 7 7 7 7 6 6 6 6 6 7 Processor 9 | . . . 10 4 . 4 16 7 5 10 14 15 15 15 13 8 8 13 10 6 Hackware 1 | . . . . . . . 7 . 1 13 . . . . . . . . . . Protection 8 | . . 6 8 10 7 11 9 9 9 7 12 15 15 15 8 5 5 6 6 8 Energy Gun 9 | . 22 . 15 21 2 14 3 9 14 4 6 7 . 11 8 12 10 6 5 4 Energy Cannon 2 | . 5 27 6 . . . . 1 . . 6 6 . 2 2 . 1 . . . Ballistic Gun 4 | . . . . . 1 2 11 . . 7 . . . . . . 5 13 12 11 Ballistic Cannon 1 | . . . . . . 4 . 4 1 . . . . . 6 3 . . . 1 Naked Turns . | . . . . . . . . . . . . . . . . . . . . . Heaviest Build 124 | 15 34 40 41 43 43 46 71 80 89 75 77 82 82 92 96 106 102 97 124 122 Greatest Support 70 | 20 32 32 32 28 28 28 24 24 32 32 28 28 28 28 28 70 63 63 63 63 Greatest Overweight (x) 25 | 4 2 2 1 2 1 3 3 6 25 4 2 2 2 3 3 5 2 1 1 3 Average Overweight (x) 1 | . 1 1 1 1 1 1 1 3 2 2 2 2 2 2 2 1 1 1 1 1 Largest Inventory Capacity 20 | 8 15 15 15 15 15 15 20 20 20 20 20 20 20 20 20 20 20 20 20 20 Average Capacity 18 | 7 13 15 15 15 15 15 16 20 20 20 20 20 20 20 20 20 20 20 20 20 Most Carried 20 | 8 15 15 15 15 15 15 20 20 20 20 20 20 20 20 20 20 20 20 20 20 Average Carried 17 | 4 11 13 14 14 14 14 15 18 18 19 19 19 19 19 19 18 19 20 19 15 Final Capacity 20 | 8 15 15 15 15 15 15 20 20 20 20 20 20 20 20 20 20 20 20 20 20 Final Carried 20 | 8 15 15 15 15 15 15 20 20 19 20 20 20 20 20 20 15 20 20 20 18 Class Distribution -------------------- 75% | Mutant 9% | Scavenger-Mutant 4% | Tank 3% | Gunner Dominant Class ---------------- Mutant | -10/Materials Mutant | -10/Mines Mutant | -9/Materials Mutant | -9/Mines Mutant | -9/Exiles Mutant | -8/Mines Mutant | -8/Materials Mutant | -8/Garrison Mutant | -8/Storage Hacker-Mutant | -7/Factory Mutant | -7/Lower Caves Mutant | -7/Lower Caves Mutant | -7/Data Miner Mutant | -6/Proximity Caves Mutant | -6/Factory Scavenger-Mutant | -6/Garrison Scavenger-Mutant | -6/Factory Mutant | -6/Lower Caves Mutant | -6/Zion Mutant | -6/Deep Caves Resources | -11 -10 -10 -9 -9 -9 -8 -8 -8 -8 -7 -7 -7 -7 -6 -6 -6 -6 -6 -6 -6 ----------- Run | Jun Mat Min Mat Min Exi Min Mat Gar Sto Fac Low Low Dat Pro Fac Gar Fac Low Zio Dee Matter Collected 9711 | 290 125 175 332 166 40 245 1042 1013 834 884 286 47 . 179 339 1434 659 58 142 1421 Remotely . | . . . . . . . . . . . . . . . . . . . . . Salvage Created 12538 | 118 245 266 764 207 60 436 1694 1297 1898 1910 667 113 . 267 294 1446 406 . . 450 Parts 630 | 9 24 19 42 12 . 14 99 58 90 82 20 10 . 14 25 60 21 . . 31 Haulers Intercepted 11 | . . . 4 . . . 4 . 1 . . . . . 1 1 . . . . Recyclers Shooed 4 | . . . . . . . 3 . . . . . . . . . 1 . . . Parts Field Recycled . | . . . . . . . . . . . . . . . . . . . . . Retrieved Matter . | . . . . . . . . . . . . . . . . . . . . . Parts Self-Destructed 38 | . . . . . . . . . . . 8 12 . 9 . . . 9 . . Prevented 12 | . . . . . . . . . . . 12 . . . . . . . . . Kills | -11 -10 -10 -9 -9 -9 -8 -8 -8 -8 -7 -7 -7 -7 -6 -6 -6 -6 -6 -6 -6 ------- Run | Jun Mat Min Mat Min Exi Min Mat Gar Sto Fac Low Low Dat Pro Fac Gar Fac Low Zio Dee Combat Hostiles Destroyed 307 | . 9 18 14 6 . 12 33 30 46 31 12 6 . 7 8 34 5 . . 36 Melee 6 | . . . . . . . 4 . . 2 . . . . . . . . . . Guns 123 | . 7 . 11 2 . 6 22 14 21 10 2 2 . 2 2 17 2 . . 3 Cannons 45 | . . 8 3 . . 1 . 8 4 2 . 1 . 3 3 9 . . . 3 AOE 112 | . 2 10 . 4 . 3 3 6 19 8 9 3 . 2 3 8 3 . . 29 Classes Destroyed 23 | 2 4 3 3 1 . 2 . 1 1 . . . . . . 1 2 . . 3 Worker 6 | . 1 . 2 . . . 2 . 1 . . . . . . . . . . . Builder 4 | . . . 1 . . . 3 . . . . . . . . . . . . . Tunneler 3 | 3 . . . . . . . . . . . . . . . . . . . . Hauler 11 | . . . 4 . . . 4 . 1 . . . . . 1 1 . . . . Recycler 6 | 1 . . . 1 . 1 . . 1 2 . . . . . . . . . . Mechanic 2 | . . 1 . . . . . . 1 . . . . . . . . . . . Watcher 15 | . 2 . 3 . . . 5 1 1 2 . . . . 1 . . . . . Swarmer 63 | . 6 3 3 3 . 3 4 7 2 . 1 6 . 6 4 15 . . . . Grunt 113 | . 3 5 3 2 . 7 19 13 20 19 7 . . . . 11 4 . . . Brawler 7 | . . . . 1 . . 1 1 3 . 1 . . . . . . . . . Duelist 6 | . . . . . . 1 . . 2 2 1 . . . . . . . . . Protector 4 | . . . . . . . . . 2 2 . . . . . . . . . . Sentry 42 | . . . 8 . . . 8 6 8 3 2 . . . 1 6 . . . . Demolisher 2 | . . 1 . . . . . . 1 . . . . . . . . . . . Hunter 5 | . . . . . . 1 1 . . 2 . . . . . 1 . . . . Programmer 11 | . . . . . . . . 3 . 3 . . . 1 3 . 1 . . . Behemoth 1 | . . . . . . . . . . . . . . . . 1 . . . . Enhanced Grunt 1 | . . . . . . . . . . . . . . 1 . . . . . . Z-Light 2 | . . . . . . . . . . . . . . . . . . . . 2 Assembler 1 | . . . . . . . . . . . . . . . . . . . . 1 Assembled 49 | . . 9 . . . . . . 8 . . . . . . . . . . 32 Golem 1 | . . . . . . . . . . . . . . . . . . . . 1 Thug 1 | . . . . . . . . . . . . . . . . . 1 . . . Guerrilla 1 | . . . . . . . . . . . . . . . . . 1 . . . Mutant 1 | . . . . . . . . . . . . . . . . . 1 . . . Infiltrator 1 | . . . . . . . . . . . . . . . . . 1 . . . Best Kill Streak 24 | 3 6 12 3 3 . 3 13 4 10 7 9 3 . 3 4 7 3 . . 24 Combat Bots Only 24 | . 6 12 3 3 . 3 6 4 8 5 9 3 . 3 4 7 3 . . 24 Max Kills in Single Turn 19 | 1 2 3 2 2 . 2 3 3 4 2 3 2 . 2 3 3 4 . . 19 Gunslinging 1 | . . . 1 . . . . . . . . . . . . . . . . . Exploded 19 | . 2 3 . 2 . 2 1 3 4 2 3 2 . 1 3 3 2 . . 19 Melee 1 | . . . . . . . 1 . . 1 . . . . . . . . . . Uniques/NPCs Destroyed 1 | . . . . . . . . . . . . . . . . . . . . 1 Z-Imprinter (-6/Deep Caves) Combat | -11 -10 -10 -9 -9 -9 -8 -8 -8 -8 -7 -7 -7 -7 -6 -6 -6 -6 -6 -6 -6 -------- Run | Jun Mat Min Mat Min Exi Min Mat Gar Sto Fac Low Low Dat Pro Fac Gar Fac Low Zio Dee Damage Taken 18080 | . 416 784 540 151 . 648 1168 1442 2782 2160 370 165 . 136 318 3702 261 . . 3037 Core 2272 | . 67 144 40 19 . 151 162 148 232 366 53 16 . 14 37 408 8 . . 407 Absorbed by Shields 618 | . . . . . . . 175 103 121 149 . . . . . 13 57 . . . Redirected to Shielding 312 | . . . . . . . . . . 16 46 10 . 16 . . . . . 224 Regen/Repaired (Parts) 727 | . 53 . 189 . . . 134 . 161 70 . . . . 120 . . . . . Core Remaining (%) 39 | 100 . 15 . . . 47 . . 1 . . . . 35 . . . . . . Volleys Fired 879 | 11 40 20 43 10 26 23 60 177 100 78 11 26 . 12 37 104 17 4 5 75 Largest 3 | 2 2 2 2 2 1 2 2 2 2 2 2 2 . 2 3 3 3 1 1 3 Hottest 268 | 100 100 136 143 130 20 114 110 136 156 225 160 145 . 140 240 268 154 94 113 167 Shots Fired 1479 | 22 77 33 88 20 26 37 119 227 171 141 21 30 . 17 65 209 29 4 5 138 Gun 966 | 22 74 . 46 17 . 30 113 116 134 116 7 4 . 6 17 118 24 4 1 117 Cannon 384 | . . 25 42 . . 5 . 100 26 6 5 24 . 6 47 80 2 . 4 12 Launcher 101 | . 1 8 . 3 . 2 6 11 11 19 9 2 . 5 1 11 3 . . 9 Special 28 | . 2 . . . 26 . . . . . . . . . . . . . . . Kinetic 514 | . . . . . . 16 109 85 37 72 . . . . 37 62 16 . . 80 Thermal 639 | 22 76 25 87 17 26 19 . 10 61 18 12 28 . 12 27 131 10 4 5 49 Explosive 47 | . 1 8 . 3 . 2 6 3 9 . . 2 . 2 1 4 3 . . 3 Electromagnetic 279 | . . . 1 . . . 4 129 64 51 9 . . 3 . 12 . . . 6 Robot Hit Streak 20 | 8 7 8 15 6 4 8 17 20 14 20 8 7 . 10 16 19 6 . . 8 Robot Miss Streak 8 | 3 5 2 6 5 2 3 5 4 6 3 2 4 . 1 2 8 2 . . 5 Penetration Max 1 | . . . . . . . 1 . 1 1 . . . . . 1 1 . . 1 Secondary Targets 6 | . . . 1 . . . . 2 2 . . . . . . 1 . . . . Max Gunslinging Chain 1 | . . . 1 . . . . 1 1 . . . . . . 1 . . . . Shots Hit Robots 882 | 13 41 19 69 13 18 33 106 107 110 108 17 5 . 6 30 123 10 . . 54 Core Hits 682 | 5 17 30 75 20 6 27 71 55 90 64 18 9 . 10 12 87 17 . . 69 Critical Kills 14 | . . . . . . . 1 4 4 2 . . . . . 2 1 . . . Critical Parts Destroyed 28 | . . . . . . 1 7 9 4 1 . . . . . 4 . . . 2 Critical Strikes 58 | 1 5 . . . . 3 8 15 9 3 . . . 1 . 9 1 . . 3 Burn 10 | 1 5 . . . . 2 . . 1 . . . . 1 . . . . . . Destroy 36 | . . . . . . . 1 14 8 3 . . . . . 7 1 . . 2 Blast 3 | . . . . . . . . . . . . . . . . 2 . . . 1 Corrupt 1 | . . . . . . . . 1 . . . . . . . . . . . . Smash 8 | . . . . . . 1 7 . . . . . . . . . . . . . Melee Attacks 120 | . . . . . 1 5 38 5 9 24 . . . . . 38 . . . . Impact 86 | . . . . . . 5 38 5 . . . . . . . 38 . . . . Slashing 34 | . . . . . 1 . . . 9 24 . . . . . . . . . . Piercing . | . . . . . . . . . . . . . . . . . . . . . Sneak Attacks 2 | . . . . . . . 1 . . 1 . . . . . . . . . . Combat Hostiles 1 | . . . . . . . . . . 1 . . . . . . . . . . Follow-up Attacks 1 | . . . . . . . 1 . . . . . . . . . . . . . Damage Inflicted 32573 | 174 716 1006 1369 436 270 975 3498 3085 5028 4243 1029 297 . 479 1086 4041 1385 . . 3456 Guns 13010 | 174 567 . 661 143 . 483 1593 1343 2229 2072 185 105 . 92 375 1744 226 . . 1018 Cannons 5042 | . . 319 686 . . 64 . 1087 247 130 124 33 . 137 528 1426 29 . . 232 Explosions 12721 | . 149 687 22 293 . 159 869 655 2552 1866 720 159 . 250 183 821 1130 . . 2206 Melee 1602 | . . . . . 80 261 1036 . . 175 . . . . . 50 . . . . Ramming 8 | . . . . . . 8 . . . . . . . . . . . . . . Kinetic 7021 | . . . . . . 274 1567 941 479 1116 . . . . 476 1002 172 . . 994 Thermal 9255 | 174 567 319 1345 143 190 273 . 274 1440 693 457 138 . 229 427 2180 150 . . 256 Explosive 8236 | . 149 687 . 293 . 159 869 145 1859 397 . 159 . 100 183 275 1063 . . 1898 Electromagnetic 6451 | . . . 24 . . . 26 1725 1250 1862 572 . . 150 . 534 . . . 308 Impact 1347 | . . . . . . 261 1036 . . . . . . . . 50 . . . . Slashing 255 | . . . . . 80 . . . . 175 . . . . . . . . . . Piercing . | . . . . . . . . . . . . . . . . . . . . . Highest Corruption 20 | . . . 2 2 2 7 5 3 20 2 7 3 3 20 1 10 10 2 2 5 Average Corruption 4 | . . . 2 2 1 5 2 1 16 1 2 3 3 3 1 9 4 2 2 4 Corruption Purged 21 | . . . . . 2 . 5 4 2 2 5 . . . 1 . . . . . Corruption Blocked 8 | . . . . . . . . . . . . . . . . 8 . . . . Effects 330 | . . . 19 12 4 . 11 6 72 . 19 20 4 35 . 54 33 11 1 29 Message Errors 98 | . . . 6 3 1 . 4 2 21 . 2 8 . 10 . 15 11 4 1 10 Matter Fused 67 | . . . 3 3 . . 1 . 17 . 5 . 2 4 . 17 7 3 . 5 Heat Flow Errors 29 | . . . . 2 . . 1 . 3 . 3 2 . 2 . 7 5 2 . 2 Energy Discharges 39 | . . . 2 . . . . 1 11 . 2 3 1 3 . 6 4 1 . 5 Parts Rejected 2 | . . . . 1 . . . . 1 . . . . . . . . . . . Parts Fused 5 | . . . . . 1 . . . 2 . . . . . . . 2 . . . Data Loss (minor) 49 | . . . 3 2 2 . 2 3 11 . 5 4 1 9 . 1 3 1 . 2 Data Loss (major) 19 | . . . 1 . . . 2 . 2 . 1 1 . 4 . 5 1 . . 2 Misfires 6 | . . . 2 1 . . 1 . . . . . . . . 1 . . . 1 Alerts 10 | . . . 2 . . . . . . . 1 2 . 2 . 1 . . . 2 Misdirections 2 | . . . . . . . . . 1 . . . . . . 1 . . . . Weapon Failures 4 | . . . . . . . . . 3 . . . . 1 . . . . . . Overload Shots 2 | . . . . . . . . . . 2 . . . . . . . . . . Overflow Damage 761 | . 40 17 13 . . 111 283 2 69 22 . . . 12 14 6 1 . . 171 Projectiles 78 | . . . 13 . . . . . . . . . . 12 14 6 . . . 33 Explosions 343 | . 40 17 . . . 4 50 2 69 22 . . . . . . 1 . . 138 Melee 340 | . . . . . . 107 233 . . . . . . . . . . . . . Knockbacks 18 | . . . . . . 1 6 5 3 . . . . . 1 1 . . . 1 Impact 6 | . . . . . . . 6 . . . . . . . . . . . . . Kinetic 12 | . . . . . . 1 . 5 3 . . . . . 1 1 . . . 1 Secondary . | . . . . . . . . . . . . . . . . . . . . . Self-Inflicted Damage 808 | . . 37 33 . . 38 . 109 272 36 46 . . . . 136 57 . . 44 Shots 40 | . . 3 1 . . 2 . 7 11 5 3 . . . . 3 1 . . 4 Rammed 1 | . . . . . . 1 . . . . . . . . . . . . . . Targets Rammed 1 | . . . . . . 1 . . . . . . . . . . . . . . Kicked . | . . . . . . . . . . . . . . . . . . . . . Crushed . | . . . . . . . . . . . . . . . . . . . . . Highest Temperature 480 | 197 231 480 177 210 . 87 186 156 320 345 199 227 . 262 341 446 255 256 56 258 Average Temperature 82 | 92 69 144 47 60 . 27 23 34 97 75 62 83 . 72 99 125 65 67 23 91 Received Heat Transfer 4371 | . 87 66 180 27 . 198 565 474 986 519 120 . . . 48 612 57 . . 432 Effects 12 | . 1 2 . . . . . . 1 . . . . 1 . 7 . . . . Shutdowns 2 | . . 1 . . . . . . . . . . . . . 1 . . . . Energy Bleed 5 | . 1 . . . . . . . 1 . . . . 1 . 2 . . . . Interference 2 | . . . . . . . . . . . . . . . . 2 . . . . Damage (minor) 2 | . . 1 . . . . . . . . . . . . . 1 . . . . Damage (major) 1 | . . . . . . . . . . . . . . . . 1 . . . . Siege Activations . | . . . . . . . . . . . . . . . . . . . . . Robots Corrupted 14 | . . . . . . . . 2 2 9 1 . . . . . . . . . Combat Hostiles 14 | . . . . . . . . 2 2 9 1 . . . . . . . . . Parts Fried 40 | . . . . . . 3 7 8 1 14 1 . . 2 . 2 . . . 2 Impact Corruptions 16 | . . . . . . 4 11 . . . . . . . . 1 . . . . Robots Melted . | . . . . . . . . . . . . . . . . . . . . . Combat Hostiles . | . . . . . . . . . . . . . . . . . . . . . Parts Melted 21 | 1 4 . 5 . . . . . 3 1 2 . . . 2 3 . . . . Heat Transferred 15054 | 592 1998 555 1979 175 629 622 . 239 2198 986 649 237 . 333 481 2949 211 . . 221 Parts Sabotaged . | . . . . . . . . . . . . . . . . . . . . . Parts Stolen . | . . . . . . . . . . . . . . . . . . . . . Parts Stripped . | . . . . . . . . . . . . . . . . . . . . . Power Chain Reactions 19 | . . . 1 . . . . 3 5 7 1 . . . . 2 . . . . Missiles Intercepted . | . . . . . . . . . . . . . . . . . . . . . Alert | -11 -10 -10 -9 -9 -9 -8 -8 -8 -8 -7 -7 -7 -7 -6 -6 -6 -6 -6 -6 -6 ------- Run | Jun Mat Min Mat Min Exi Min Mat Gar Sto Fac Low Low Dat Pro Fac Gar Fac Low Zio Dee Peak Influence 2402 | 20 356 459 571 253 . 266 583 2402 1936 1250 . . . . 135 1970 1170 . . . Initial 1170 | . 13 23 100 120 . . 29 265 1170 880 . . . . . 25 1033 . . . Average 644 | 6 170 251 346 126 . 121 327 1225 1533 981 . . . . 29 802 1025 . . . Maximum Alert Level 5 | . 1 2 2 1 . 1 2 5 5 4 . . . . . 5 4 . . . Low Security (%) 22 | 100 66 29 5 61 . 87 20 . . . . . . . 100 7 . . . . Level 1 26 | . 33 52 73 38 . 12 43 6 . . . . . . . 30 . . . . Level 2 11 | . . 17 20 . . . 36 10 . . . . . . . 17 . . . . Level 3 19 | . . . . . . . . 27 . 82 . . . . . 15 85 . . . Level 4 12 | . . . . . . . . 30 53 17 . . . . . 17 14 . . . Level 5 7 | . . . . . . . . 25 46 . . . . . . 11 . . . . High Security . | . . . . . . . . . . . . . . . . . . . . . Max Security . | . . . . . . . . . . . . . . . . . . . . . Squads Dispatched 41 | . 3 1 1 . . 1 1 . 10 10 . . . . 3 . 11 . . . Investigation 5 | . 2 . 1 . . 1 . . . 1 . . . . . . . . . . Extermination 8 | . . . . . . . . . . 3 . . . . 3 . 2 . . . Reinforcement 7 | . 1 . . . . . 1 . 3 1 . . . . . . 1 . . . Assault 16 | . . 1 . . . . . . 6 4 . . . . . . 5 . . . Garrison 5 | . . . . . . . . . 1 1 . . . . . . 3 . . . Intercept . | . . . . . . . . . . . . . . . . . . . . . Searches Triggered . | . . . . . . . . . . . . . . . . . . . . . Data Miner Redirects 2 | . . . . . . . . . . . . . . . . . 2 . . . Construction Impeded 1 | . . . . . . . . . 1 . . . . . . . . . . . Haulers Reinforced . | . . . . . . . . . . . . . . . . . . . . . Active Scanning Responses . | . . . . . . . . . . . . . . . . . . . . . Cargo Convoy Interrupts . | . . . . . . . . . . . . . . . . . . . . . Stealth | -11 -10 -10 -9 -9 -9 -8 -8 -8 -8 -7 -7 -7 -7 -6 -6 -6 -6 -6 -6 -6 --------- Run | Jun Mat Min Mat Min Exi Min Mat Gar Sto Fac Low Low Dat Pro Fac Gar Fac Low Zio Dee Distress Signals 16 | . 2 . 1 . . . 4 . 6 . . . . . . . 3 . . . Communications Jammed . | . . . . . . . . . . . . . . . . . . . . . Distress Signals . | . . . . . . . . . . . . . . . . . . . . . Times Spotted 497 | . 22 27 34 9 . 21 49 38 85 52 14 5 . 8 9 41 33 . . 50 Peak Tracking Total 32 | . 8 8 4 4 . 4 6 3 11 5 9 3 . 4 4 8 5 . . 32 Tactical Retreats 49 | . 7 2 . 1 . 3 12 7 5 3 . . . . 1 2 1 . . 5 Traps | -11 -10 -10 -9 -9 -9 -8 -8 -8 -8 -7 -7 -7 -7 -6 -6 -6 -6 -6 -6 -6 ------- Run | Jun Mat Min Mat Min Exi Min Mat Gar Sto Fac Low Low Dat Pro Fac Gar Fac Low Zio Dee Traps Triggered 30 | . 2 . 3 . . . 2 12 2 1 . . . . 2 6 . . . . Indirectly 1 | . . . . . . . . . . 1 . . . . . . . . . . Trap Hack Attempts . | . . . . . . . . . . . . . . . . . . . . . Triggered . | . . . . . . . . . . . . . . . . . . . . . Disarmed . | . . . . . . . . . . . . . . . . . . . . . Reprogrammed 4 | . . . 4 . . . . . . . . . . . . . . . . . Reused 18 | . . . . . . 6 . . . . . . . . . 2 2 . . 8 Traps Extracted 5 | . . . 4 . . . . . . . . . . . . 1 . . . . Installed 26 | . . . . . . 6 . . . . . . . . . 3 3 . . 14 Triggered 16 | . . . . . . 6 1 . . . . 5 . . . 2 2 . . . Fabricated Traps 14 | . . . . . . . . . . . . . . . . . . . . 14 Most Traps Carried 6 | . . . 4 6 6 6 . . . . . . . . . 6 3 . . 5 Machines | -11 -10 -10 -9 -9 -9 -8 -8 -8 -8 -7 -7 -7 -7 -6 -6 -6 -6 -6 -6 -6 ---------- Run | Jun Mat Min Mat Min Exi Min Mat Gar Sto Fac Low Low Dat Pro Fac Gar Fac Low Zio Dee Machines Disabled 50 | . 1 . . . . . 2 6 8 4 . . . . . 8 14 . 3 4 Max in Single Turn 4 | . 1 . . . . . 1 1 1 2 . . . . . 1 4 . 1 1 Garrison Access 2 | . . . . . . . . . 1 . . . . . 1 . . . . . Garrison Relay 7 | . . . . . . . . 4 . . . . . . . 3 . . . . Machines Repaired . | . . . . . . . . . . . . . . . . . . . . . Machines Sabotaged . | . . . . . . . . . . . . . . . . . . . . . Overloaded Fab Kills . | . . . . . . . . . . . . . . . . . . . . . Hacking | -11 -10 -10 -9 -9 -9 -8 -8 -8 -8 -7 -7 -7 -7 -6 -6 -6 -6 -6 -6 -6 --------- Run | Jun Mat Min Mat Min Exi Min Mat Gar Sto Fac Low Low Dat Pro Fac Gar Fac Low Zio Dee Machines Accessed 93 | . 10 . 17 1 2 1 16 4 9 14 1 . 4 . 6 2 6 . . . Terminals 55 | . 7 . 12 . . 1 10 4 5 5 . . . . 3 2 6 . . . Fabricators 4 | . . . . . . . . . . 4 . . . . . . . . . . Repair Stations 8 | . 1 . 1 . . . 2 . 1 2 . . . . 1 . . . . . Recycling Units 10 | . 2 . 2 . . . 2 . 2 2 . . . . . . . . . . Scanalyzers 4 | . . . 2 . . . 1 . . 1 . . . . . . . . . . Garrison Access 4 | . . . . . . . 1 . 1 . . . . . 2 . . . . . Total Hacks 318 | . 31 . 67 1 2 3 80 7 29 42 1 . 31 . 10 3 11 . . . Successful 183 | . 17 . 45 1 2 . 40 2 13 22 1 . 31 . 4 1 4 . . . Failed 135 | . 14 . 22 . . 3 40 5 16 20 . . . . 6 2 7 . . . Catastrophic 18 | . 2 . 2 . . 1 3 1 1 3 . . . . 2 1 2 . . . Database Lockouts . | . . . . . . . . . . . . . . . . . . . . . Manual 123 | . 13 . 40 . 1 3 47 . 9 6 . . . . 1 . 3 . . . Terminals 173 | . 22 . 44 . . 3 53 7 12 13 . . . . 5 3 11 . . . Fabricators 11 | . . . . . . . . . . 11 . . . . . . . . . . Repair Stations 40 | . 5 . 9 . . . 11 . 9 4 . . . . 2 . . . . . Recycling Units 28 | . 4 . 8 . . . 7 . 5 4 . . . . . . . . . . Scanalyzers 24 | . . . 6 . . . 8 . . 10 . . . . . . . . . . Garrison Access 7 | . . . . . . . 1 . 3 . . . . . 3 . . . . . Terminal Hacks 79 | . 6 . 13 1 2 . 11 2 3 4 1 . 31 . . 1 4 . . . Record 12 | . . . . . 1 . . . . . . . 11 . . . . . . . Part Schematic 14 | . . . . . . . . . . 2 . . 12 . . . . . . . Robot Schematic 6 | . . . . . . . 1 . . . . . 5 . . . . . . . Robot Analysis 13 | . 4 . 4 . . . 4 . . . . . . . . . 1 . . . Prototype ID Bank 7 | . . . 2 . . . 1 . 1 . . . 3 . . . . . . . Open Door 2 | . . . . 1 . . . . . . 1 . . . . . . . . . Branch Access Points 2 | . . . 1 . . . . . . 1 . . . . . . . . . . Emergency Access Points 1 | . . . . . . . . 1 . . . . . . . . . . . . Terminal Index 4 | . . . 1 . . . 1 . 1 . . . . . . . 1 . . . Unreport Threat 5 | . . . . . . . 2 . 1 1 . . . . . . 1 . . . Locate Traps 3 | . 1 . 1 . . . . . . . . . . . . . 1 . . . Reprogram Traps 2 | . . . 2 . . . . . . . . . . . . . . . . . Security Status 1 | . . . . . . . 1 . . . . . . . . . . . . . Patrol Status 1 | . . . 1 . . . . . . . . . . . . . . . . . Investigation Status 1 | . 1 . . . . . . . . . . . . . . . . . . . Hauler Manifests 2 | . . . 1 . . . 1 . . . . . . . . . . . . . Patrol Navigation 1 | . . . . . . . . . . . . . . . . 1 . . . . Security Stations 1 | . . . . . . . . 1 . . . . . . . . . . . . EX-Prototype ID Bank 1 | . . . . . 1 . . . . . . . . . . . . . . . Fabricator Hacks 6 | . . . . . . . . . . 6 . . . . . . . . . . Network Status 1 | . . . . . . . . . . 1 . . . . . . . . . . Load Schematic 1 | . . . . . . . . . . 1 . . . . . . . . . . Build 4 | . . . . . . . . . . 4 . . . . . . . . . . Repair Station Hacks 31 | . 4 . 8 . . . 8 . 5 4 . . . . 2 . . . . . Scan Component 17 | . 2 . 4 . . . 5 . 3 2 . . . . 1 . . . . . Repair 14 | . 2 . 4 . . . 3 . 2 2 . . . . 1 . . . . . Recycling Unit Hacks 9 | . 2 . 2 . . . 3 . 1 1 . . . . . . . . . . Report Inventory 4 | . 1 . 1 . . . 2 . . . . . . . . . . . . . Retrieve Components 5 | . 1 . 1 . . . 1 . 1 1 . . . . . . . . . . Scanalyzer 16 | . . . 4 . . . 7 . . 5 . . . . . . . . . . Insert Component 8 | . . . 2 . . . 3 . . 3 . . . . . . . . . . Analyze 8 | . . . 2 . . . 4 . . 2 . . . . . . . . . . Garrison Access Hacks 4 | . . . . . . . 1 . 1 . . . . . 2 . . . . . Unlock Access 2 | . . . . . . . 1 . . . . . . . 1 . . . . . Seal Access 2 | . . . . . . . . . 1 . . . . . 1 . . . . . Unauthorized Hacks 38 | . 5 . 18 . . . 10 . 3 2 . . . . . . . . . . Terminals 31 | . 4 . 15 . . . 8 . 2 2 . . . . . . . . . . Track 9 | . 1 . 6 . . . 2 . . . . . . . . . . . . . Assimilate 1 | . . . . . . . . . . 1 . . . . . . . . . . Botnet 18 | . 3 . 8 . . . 5 . 1 1 . . . . . . . . . . Operators 3 | . . . 1 . . . 1 . 1 . . . . . . . . . . . Fabricators . | . . . . . . . . . . . . . . . . . . . . . Repair Stations . | . . . . . . . . . . . . . . . . . . . . . Recycling Units 7 | . 1 . 3 . . . 2 . 1 . . . . . . . . . . . Reject 4 | . . . 2 . . . 1 . 1 . . . . . . . . . . . Mask 2 | . . . 1 . . . 1 . . . . . . . . . . . . . Tunnel 1 | . 1 . . . . . . . . . . . . . . . . . . . Scanalyzers . | . . . . . . . . . . . . . . . . . . . . . Garrison Access . | . . . . . . . . . . . . . . . . . . . . . Data Cores Recovered 1 | . . . . . . . . . . . . . . . . . 1 . . . Used . | . . . . . . . . . . . . . . . . . . . . . Hacking Detections 81 | . 10 . 17 . . 1 15 3 9 14 . . . . 4 2 6 . . . Full Trace Events 7 | . 2 . 1 . . 1 . 1 . 1 . . . . . 1 . . . . Feedback Events . | . . . . . . . . . . . . . . . . . . . . . Feedback Blocked . | . . . . . . . . . . . . . . . . . . . . . Robot Schematics Acquired 8 | . . . . . . . 1 . . . . . 5 . . . . . 2 . Robots Built 1 | . . . . . . . . . . 1 . . . . . . . . . . Authchips . | . . . . . . . . . . . . . . . . . . . . . Time 49 | . . . . . . . . . . 49 . . . . . . . . . . Total Robot Build Rating 2 | . . . . . . . . . . 2 . . . . . . . . . . Part Schematics Acquired 34 | . . . . . . . 3 . . 4 . . 12 . . . . . 15 . Parts Built 4 | . . . . . . . . . . 4 . . . . . . . . . . Authchips . | . . . . . . . . . . . . . . . . . . . . . Time 202 | . . . . . . . . . . 202 . . . . . . . . . . Total Part Build Rating 23 | . . . . . . . . . . 23 . . . . . . . . . . Parts Repaired 14 | . 2 . 4 . . . 3 . 2 2 . . . . 1 . . . . . Time 709 | . 64 . 226 . . . 200 . 97 66 . . . . 56 . . . . . Parts Recycled . | . . . . . . . . . . . . . . . . . . . . . Recycled Matter . | . . . . . . . . . . . . . . . . . . . . . Retrieved Matter . | . . . . . . . . . . . . . . . . . . . . . Retrieved Components 32 | . 3 . . . . . 9 . 10 10 . . . . . . . . . . Parts Scanalyzed 5 | . . . 1 . . . 2 . . 2 . . . . . . . . . . Part Schematics Acquired 5 | . . . . . . . 3 . . 2 . . . . . . . . . . Parts Damaged 1 | . . . . . . . 1 . . . . . . . . . . . . . Bothacking | -11 -10 -10 -9 -9 -9 -8 -8 -8 -8 -7 -7 -7 -7 -6 -6 -6 -6 -6 -6 -6 ------------ Run | Jun Mat Min Mat Min Exi Min Mat Gar Sto Fac Low Low Dat Pro Fac Gar Fac Low Zio Dee Used RIF Installer . | . . . . . . . . . . . . . . . . . . . . . Robots Hacked . | . . . . . . . . . . . . . . . . . . . . . Non-combat . | . . . . . . . . . . . . . . . . . . . . . Combat . | . . . . . . . . . . . . . . . . . . . . . Robot Hacks Applied . | . . . . . . . . . . . . . . . . . . . . . Relay Couplers Released 25 | . . . . . . . . 15 . . . . . . . 10 . . . . Machine Destruction 25 | . . . . . . . . 15 . . . . . . . 10 . . . . Fabnet Peak Effective % . | . . . . . . . . . . . . . . . . . . . . . Robots Rewired 11 | . . . . . 3 . . 3 . . 2 . . . . 3 . . . . Allies Hacked 2 | . . . . . . . . . . 1 . . . . . . 1 . . . Hacks Repelled 1 | . . . . . . . . . . 1 . . . . . . . . . . Allies | -11 -10 -10 -9 -9 -9 -8 -8 -8 -8 -7 -7 -7 -7 -6 -6 -6 -6 -6 -6 -6 -------- Run | Jun Mat Min Mat Min Exi Min Mat Gar Sto Fac Low Low Dat Pro Fac Gar Fac Low Zio Dee Total Allies 28 | . . 4 . 2 3 . . 3 3 2 2 . . 1 . 5 . . 3 . Largest Group 5 | . . 4 4 2 3 3 . 3 3 2 2 1 . 1 . 5 5 . 3 3 Highest-Rated Group 286 | . . 71 71 41 41 37 . 84 113 95 40 20 . 96 . 286 286 . 81 81 Highest-Rated Ally 100 | . . 31 31 31 31 21 . 39 100 95 20 20 . 96 . 95 95 . 39 39 Warlord Squad Rendezvous 7 | . . . . . . . . . . . . . . . 3 . 4 . . . Dakka 1 | . . . . . . . . . . . . . . . 1 . . . . . Infantry 1 | . . . . . . . . . . . . . . . . . 1 . . . Muscle 1 | . . . . . . . . . . . . . . . 1 . . . . . Ranger 1 | . . . . . . . . . . . . . . . . . 1 . . . Pyro 2 | . . . . . . . . . . . . . . . 1 . 1 . . . Chimera 1 | . . . . . . . . . . . . . . . . . 1 . . . Total Orders 38 | . . . 2 . 2 7 . 2 2 11 . . . . . 4 5 3 . . STAY 14 | . . . 1 . 1 2 . 1 1 6 . . . . . 1 1 . . . ROAM 2 | . . . . . . 2 . . . . . . . . . . . . . . FOLLOW 14 | . . . 1 . 1 3 . 1 1 5 . . . . . 1 1 . . . EXPLORE 8 | . . . . . . . . . . . . . . . . 2 3 3 . . Ally Attacks 208 | . . 19 48 . . 13 . 11 42 . . 1 . 8 . . 48 . . 18 Total Damage 5265 | . . 334 534 . . 215 . 304 1354 . . . . 303 . . 2159 . . 62 Kills 55 | . . 6 14 . . 3 . 2 16 . . . . 1 . . 13 . . . Allies Corrupted . | . . . . . . . . . . . . . . . . . . . . . Allies Melted 1 | . . . . . . . . . . . . 1 . . . . . . . . Intel | -11 -10 -10 -9 -9 -9 -8 -8 -8 -8 -7 -7 -7 -7 -6 -6 -6 -6 -6 -6 -6 ------- Run | Jun Mat Min Mat Min Exi Min Mat Gar Sto Fac Low Low Dat Pro Fac Gar Fac Low Zio Dee Robot Analysis Total 13 | . 4 . 4 . . . 4 . . . . . . . . . 1 . . . Derelict Logs Recovered 12 | . . 2 . 3 . . . . . . . 1 . 3 . . . 1 2 . Drone Launches 8 | . . . . . . . . . . . . . . . . 2 3 3 . . Drone Recoveries 3 | . . . . . . . . . . . . . . . . . 1 2 . . Exploration | -11 -10 -10 -9 -9 -9 -8 -8 -8 -8 -7 -7 -7 -7 -6 -6 -6 -6 -6 -6 -6 ------------- Run | Jun Mat Min Mat Min Exi Min Mat Gar Sto Fac Low Low Dat Pro Fac Gar Fac Low Zio Dee Turns Passed 39638 | 129 1258 762 3518 1004 977 1058 3146 3006 1693 2208 1573 1379 137 1450 1846 3159 1944 1887 2639 4865 Spaces Moved 20722 | 61 912 547 2533 702 762 807 1573 1696 762 1123 1067 751 100 936 961 1206 738 713 1110 1662 Core 10 | 9 . . . . . . . . 1 . . . . . . . . . . . Treads 5202 | . . . . . . . . . 9 . . . . . . 970 738 713 1110 1662 Legs 34 | 29 . . . . . . . . . . . . . . . 5 . . . . Wheels 15476 | 23 912 547 2533 702 762 807 1573 1696 752 1123 1067 751 100 936 961 231 . . . . Hover . | . . . . . . . . . . . . . . . . . . . . . Flight . | . . . . . . . . . . . . . . . . . . . . . Fastest Speed 50 | 50 80 115 105 110 110 105 100 120 115 115 130 130 130 130 130 130 232 232 232 232 Average Speed 150 | 118 100 115 106 110 110 105 110 137 145 137 130 130 130 132 143 210 241 232 232 241 Slowest Speed 1300 | 250 115 130 115 130 110 135 135 180 1300 160 130 130 130 145 145 470 305 232 232 400 Overloaded Moves . | . . . . . . . . . . . . . . . . . . . . . Propulsion Burnouts . | . . . . . . . . . . . . . . . . . . . . . Robots Hopped . | . . . . . . . . . . . . . . . . . . . . . Cave-ins Triggered 5 | . . . . . . . . 1 . . . . . . . 3 . . . 1 Exploration Rate (%) 73 | 5 95 92 99 99 90 89 90 96 88 27 79 84 69 95 21 60 21 81 89 79 Regions Visited 20 Branch Regions 12 Pre-discovered Areas 8 | . 1 . . 3 1 . . . . . 1 . 1 1 . . . . . . Known Exits Taken 10 | . . . 1 . . 1 1 . . 1 1 1 1 1 1 . 1 . . . Unknown Exits Taken 8 | 1 1 1 . 1 1 . . . 1 . . . . . . . . 1 1 . Scrap Searched 20 | . . 1 . 2 . 2 . . . . 3 3 . 3 . . . 2 4 . Spaces Dug 130 | . 2 . . . . . 1 17 8 3 . 20 . . 18 33 2 4 . 22 Terrain Destroyed 694 | . 11 46 4 30 . 19 36 48 93 51 2 34 . 16 38 108 72 4 . 82 Melee 31 | . . . . . . . 1 4 3 3 . . . . . 20 . . . . Projectile 157 | . 2 1 . . . 2 2 25 14 2 . 23 . 4 25 18 2 4 . 33 AOE 502 | . 9 45 4 30 . 17 33 15 76 46 2 11 . 12 13 70 70 . . 49 Terrain Rammed . | . . . . . . . . . . . . . . . . . . . . . Walls Destroyed . | . . . . . . . . . . . . . . . . . . . . . Machines Disabled . | . . . . . . . . . . . . . . . . . . . . . Actions | -11 -10 -10 -9 -9 -9 -8 -8 -8 -8 -7 -7 -7 -7 -6 -6 -6 -6 -6 -6 -6 --------- Run | Jun Mat Min Mat Min Exi Min Mat Gar Sto Fac Low Low Dat Pro Fac Gar Fac Low Zio Dee Total 27521 | 93 1175 643 3270 912 847 961 2787 2122 1153 1605 1225 1123 109 1125 1366 1601 872 942 1170 2420 Wait 4619 | . 184 53 622 182 8 94 1025 85 198 279 101 340 . 157 330 112 67 223 29 530 Move 20699 | 60 911 546 2532 701 761 807 1573 1693 761 1122 1066 750 99 935 961 1202 737 712 1109 1661 Hop . | . . . . . . . . . . . . . . . . . . . . . Pick Up 269 | 10 19 8 24 4 4 5 22 18 24 27 9 1 4 4 5 22 11 . 3 45 Fast Attach 102 | 8 . . 9 1 2 2 6 4 8 10 2 . . 3 7 20 7 1 8 4 Attach 122 | 1 6 5 8 2 1 3 14 8 19 14 3 . 2 1 2 15 3 . . 15 Detach 19 | . . . 1 . . . 2 1 3 1 1 . . . 1 2 1 . 1 5 Swap 260 | . 7 7 13 8 3 11 34 25 22 30 17 4 . 7 14 24 14 1 4 15 Drop 238 | 3 8 4 18 4 6 4 15 16 9 20 7 2 4 6 9 24 12 1 11 55 Fire 879 | 11 40 20 43 10 26 23 60 177 100 78 11 26 . 12 37 104 17 4 5 75 Melee 118 | . . . . . 1 5 36 5 9 24 . . . . . 38 . . . . Ram . | . . . . . . . . . . . . . . . . . . . . . Kick . | . . . . . . . . . . . . . . . . . . . . . Crush . | . . . . . . . . . . . . . . . . . . . . . Escape Stasis 75 | . . . . . . . . 65 . . . . . . . 9 . . . 1 Rewire 95 | . . . . . 35 1 . 25 . . 8 . . . . 26 . . . . Trap 26 | . . . . . . 6 . . . . . . . . . 3 3 . . 14 Miscellaneous . | . . . . . . . . . . . . . . . . . . . . . Route ------- -11/Junkyard -10/Materials (discovered 4 exits: *Mat x3 / [*Min]) -10/Mines (discovered 2 exits: *Mat x2) -9/Materials (discovered 5 exits: *Mat x3 / *Min x2) -9/Mines (discovered 3 exits: *Mat x2 / *Exi) -9/Exiles (discovered 2 exits: *Min x2) -8/Mines (discovered 2 exits: *Mat x2) -8/Materials (discovered 5 exits: *Fac x2 / *Sto x2 / Gar) -8/Garrison (discovered 3 exits: *Sto x3) -8/Storage -7/Factory (discovered 4 exits: *Fac x2 / *Low x2) -7/Lower Caves -7/Lower Caves (discovered 2 exits: *Fac / *Dat) -7/Data Miner -6/Proximity Caves -6/Factory (discovered 2 exits: *Low / Gar) -6/Garrison (discovered 2 exits: *Fac x2) -6/Factory -6/Lower Caves (discovered 2 exits: [*Low] / [*Zio]) -6/Zion (discovered 2 exits: [*Dee] / [*Pro]) -6/Deep Caves (discovered 1 exit: *Pro) History --------- Turn | Location | Event 24 | -11/Junkyard | Discovered new exit (range 16) 130 | -11/Junkyard | Entered Materials 314 | -10/Materials | Build established: Mutant 503 | -10/Materials | Discovered new exit (range 16) 716 | -10/Materials | Discovered new exit (range 3) 843 | -10/Materials | Discovered new exit (range 15) 999 | -10/Materials | Discovered new exit (range 7) 1221 | -10/Materials | Repaired Wheel 1259 | -10/Materials | Repaired Imp. Terrain Scanner 1388 | -10/Materials | Entered Mines 1389 | -10/Mines | Assembled infested the area 1430 | -10/Mines | Destroyed 12 combat bots 1433 | -10/Mines | Learned Materials stockpile data 1453 | -10/Mines | Met a Derelict bent on vengeance 1477 | -10/Mines | Discovered new exit (range 8) 1518 | -10/Mines | Core integrity fell below 50% 1538 | -10/Mines | Learned Materials emergency access door positions 1548 | -10/Mines | Lost 3 parts (1n1u1w) 1586 | -10/Mines | Met a Derelict testing a Signal Generator 1743 | -10/Mines | Core integrity fell below 20% 1852 | -10/Mines | Assisted by bots powering up and referring to "LRC-V3" 1899 | -10/Mines | A weapon hastily lodged in a ceiling crevice suddenly fell to the ground 2011 | -10/Mines | Found a damaged Exp. Sensor Array with a note attached 2014 | -10/Mines | Found Prototype Device 2115 | -10/Mines | Discovered new exit (range 15) 2150 | -10/Mines | Entered Materials 2150 | -9/Materials | Accompanied by 4 allies 2150 | -9/Materials | Evolved 2 slots: Utility x2 2571 | -9/Materials | Identified exit to Mines 2737 | -9/Materials | Discovered new exit (range 4) 2951 | -9/Materials | Discovered new exit (range 4) 3233 | -9/Materials | Build established: Scavenger-Mutant 3637 | -9/Materials | Build established: Mutant 3905 | -9/Materials | Discovered new exit (range 8) 4512 | -9/Materials | Identified Exp. Sensor Array 4831 | -9/Materials | Repaired Imp. Ion Engine 4859 | -9/Materials | Repaired Com. Wheel 4892 | -9/Materials | Repaired Imp. Treads 5029 | -9/Materials | Repaired Broken Exp. Sensor Array 5668 | -9/Materials | Entered Mines 5730 | -9/Mines | Deemed a non-threat by the Exiles lab entrance 5730 | -9/Mines | Discovered new exit (range 5) 5862 | -9/Mines | Found a hidden stash of uninstalled traps 5910 | -9/Mines | Met a Derelict who couldn't figure out how to use a Trap Extractor 5933 | -9/Mines | Learned location of Zion (-6) 6135 | -9/Mines | Learned location of Storage (-8) 6359 | -9/Mines | Identified exit to Materials 6373 | -9/Mines | Discovered exit to Materials (range 12) 6672 | -9/Mines | Entered Exiles 6672 | -9/Exiles | Found Exiles lab destroyed 6672 | -9/Exiles | Accompanied by 2 allies 6702 | -9/Exiles | Led the pair of lost Derelicts to a safe place 7066 | -9/Exiles | Opened EX-Vault 7071 | -9/Exiles | Found Prototype Device 7075 | -9/Exiles | Identified Skeleton Box 7449 | -9/Exiles | Discovered new exit (range 14) 7632 | -9/Exiles | Discovered new exit (range 14) 7649 | -9/Exiles | Entered Mines 7649 | -8/Mines | Accompanied by 3 allies 7657 | -8/Mines | Discovered exit to Materials (range 11) 8083 | -8/Mines | Discovered exit to Materials (range 9) 8706 | -8/Mines | Core integrity fell below 50% 8707 | -8/Mines | Entered Materials 8707 | -8/Materials | Evolved 2 slots: Utility x2 9120 | -8/Materials | Discovered new exit (range 15) 9601 | -8/Materials | Discovered new exit (range 16) 9988 | -8/Materials | Repaired Arm. Wheel 10539 | -8/Materials | Discovered new exit (range 4) 10775 | -8/Materials | Discovered new exit (range 16) 10963 | -8/Materials | Repaired Broken Exp. Sensor Array 10996 | -8/Materials | Repaired Arm. Wheel 11853 | -8/Materials | Identified exit to Garrison 11853 | -8/Materials | Entered Garrison 11898 | -8/Garrison | Garrison Relay disabled 11967 | -8/Garrison | Triggered checkpoint 12040 | -8/Garrison | Triggered checkpoint 12149 | -8/Garrison | Discovered new exit (range 13) 12252 | -8/Garrison | Triggered checkpoint 12315 | -8/Garrison | Garrison Relay disabled 12352 | -8/Garrison | Triggered checkpoint 12536 | -8/Garrison | Garrison Relay disabled 12559 | -8/Garrison | Discovered new exit (range 14) 12866 | -8/Garrison | Spotted B-75 Beast 13260 | -8/Garrison | Crushed by falling debris 13653 | -8/Garrison | Core integrity fell below 50% 13892 | -8/Garrison | Triggered checkpoint 14002 | -8/Garrison | Triggered checkpoint 14115 | -8/Garrison | Remotely autohacked Sealed Heavy Doors 14183 | -8/Garrison | Garrison Relay disabled 14286 | -8/Garrison | Discovered new exit (range 15) 14323 | -8/Garrison | Learned Storage security intel 14518 | -8/Garrison | Allies destroyed B-75 Beast 14706 | -8/Garrison | Attempted to access garrison exit controls, blocked by remote lockdown 14859 | -8/Garrison | Entered Storage 14859 | -8/Storage | Accompanied by 3 allies 14997 | -8/Storage | Assembled infested ambush trap array 15044 | -8/Storage | Destroyed 8 combat bots 15080 | -8/Storage | Lost 3 parts (2u1w) 15238 | -8/Storage | Remotely autohacked Sealed Heavy Doors 15259 | -8/Storage | First assault squad dispatched 15306 | -8/Storage | System corruption reached 10% 15343 | -8/Storage | Destroyed 8 combat bots 15353 | -8/Storage | Lost 10 parts (2n5u3w) 15729 | -8/Storage | Core integrity fell below 20% 15841 | -8/Storage | Met 01-MTF 15961 | -8/Storage | Garrison activated, responded to threat 16077 | -8/Storage | Discovered new exit (range 15) 16113 | -8/Storage | Lost 3 parts (1n1u1w) 16246 | -8/Storage | Repaired Imp. Medium Armor Plating 16301 | -8/Storage | Repaired Broken Imp. Grenade Launcher 16552 | -8/Storage | Entered Factory 16552 | -7/Factory | Accompanied by 1 ally (01-MTF) 16552 | -7/Factory | Evolved 2 slots: Utility x2 16557 | -7/Factory | 01-MTF left 16729 | -7/Factory | Identified exit to Lower Caves 16959 | -7/Factory | Repaired System Restoration Module 17028 | -7/Factory | Garrison activated, responded to threat 17281 | -7/Factory | Repaired Imp. Medium Armor Plating 17426 | -7/Factory | Fabricated Imp. Deuterium Engine (x2) 17539 | -7/Factory | Fabricated I-25 Savior? 17709 | -7/Factory | Discovered new exit (range 9) 17752 | -7/Factory | First assault squad dispatched 17839 | -7/Factory | Discovered new exit (range 4) 17903 | -7/Factory | Build established: Hacker-Mutant 18212 | -7/Factory | Fabricated Exp. Sensor Array? 18307 | -7/Factory | Lost 8 parts (1p2n2u3w) 18543 | -7/Factory | Build established: Mutant 18571 | -7/Factory | Fabricated Adv. Datajack (x1) 18609 | -7/Factory | Core integrity fell below 50% 18760 | -7/Factory | Entered Lower Caves 18840 | -7/Lower Caves | Met a Warlord Commander 18841 | -7/Lower Caves | Learned location of Warlord (-4) 18845 | -7/Lower Caves | Found Encrypted Comm Array 19205 | -7/Lower Caves | Attracted the attention of an 0b10 outpost 19252 | -7/Lower Caves | Destroyed 9 combat bots 19504 | -7/Lower Caves | Attracted the attention of an 0b10 checkpoint 20066 | -7/Lower Caves | Discovered new exit (range 10) 20075 | -7/Lower Caves | Identified exit to Lower Caves 20333 | -7/Lower Caves | Entered another Lower Caves area 20333 | -7/Lower Caves | Accompanied by 1 ally 20396 | -7/Lower Caves | Discovered new exit (range 14) 20411 | -7/Lower Caves | Identified exit to Factory 21176 | -7/Lower Caves | Learned Factory stockpile data 21372 | -7/Lower Caves | Discovered new exit (range 7) 21380 | -7/Lower Caves | Identified exit to Data Miner 21712 | -7/Lower Caves | Entered Data Miner 21713 | -7/Data Miner | Discovered new exit (range 6) 21738 | -7/Data Miner | Met Data Miner 21762 | -7/Data Miner | Learned location of Section 7 (-2) 21762 | -7/Data Miner | Acquired the access code to Warlord's prototype stash 21784 | -7/Data Miner | Received God Mode back door access code from Data Miner 21824 | -7/Data Miner | Identified exit to Proximity Caves 21849 | -7/Data Miner | Entered Proximity Caves 21980 | -6/Proximity Caves | Escorted by Enhanced Grunt 22647 | -6/Proximity Caves | Learned Factory emergency access door positions 23053 | -6/Proximity Caves | Learned Factory garrison access intel 23250 | -6/Proximity Caves | Discovered exit to Factory (range 7) 23297 | -6/Proximity Caves | System corruption reached 10% 23299 | -6/Proximity Caves | Entered Factory 23299 | -6/Factory | Evolved 2 slots: Utility x1, Weapon x1 23302 | -6/Factory | Loaded intel: 4 garrison access locations 23489 | -6/Factory | Discovered new exit (range 7) 23498 | -6/Factory | Identified exit to Lower Caves 24011 | -6/Factory | Repaired Remote Force Field? 24987 | -6/Factory | Joined by Warlord Muscle squad 25051 | -6/Factory | Joined by Warlord Dakka squad 25069 | -6/Factory | Build established: Gunner 25134 | -6/Factory | Joined by Warlord Pyro squad 25144 | -6/Factory | Identified exit to Garrison 25145 | -6/Factory | Entered Garrison 25176 | -6/Garrison | Triggered checkpoint 25221 | -6/Garrison | Garrison Relay disabled 25351 | -6/Garrison | Spotted B-75 Beast 25356 | -6/Garrison | Triggered checkpoint 25357 | -6/Garrison | Triggered checkpoint 25404 | -6/Garrison | Lost 3 parts (3u) 25415 | -6/Garrison | Destroyed B-75 Beast 25592 | -6/Garrison | Discovered new exit (range 3) 25595 | -6/Garrison | Identified exit to Factory 25716 | -6/Garrison | Lost 4 parts (1n2u1w) 26099 | -6/Garrison | Found Fusion Bomb Launcher 26118 | -6/Garrison | Found Gamma Bomb Array 26450 | -6/Garrison | Garrison Relay disabled 26516 | -6/Garrison | Triggered checkpoint 26766 | -6/Garrison | Crushed by falling debris 26770 | -6/Garrison | Triggered checkpoint 26779 | -6/Garrison | Build established: Mutant 26781 | -6/Garrison | Crushed by falling debris 26802 | -6/Garrison | Crushed by falling debris 26803 | -6/Garrison | System corruption reached 10% 26833 | -6/Garrison | Lost 7 parts (6u1w) 27095 | -6/Garrison | Build established: Scavenger-Tank 27194 | -6/Garrison | Triggered checkpoint 27236 | -6/Garrison | Lost 4 parts (3u1w) 27238 | -6/Garrison | Destroyed 7 combat bots 27278 | -6/Garrison | Triggered checkpoint 27314 | -6/Garrison | Discovered exit to Factory (range 12) 27516 | -6/Garrison | Build established: Scavenger-Mutant 27770 | -6/Garrison | Triggered checkpoint 27781 | -6/Garrison | Core integrity fell below 50% 27813 | -6/Garrison | Lost 3 parts (1p1n1w) 27858 | -6/Garrison | Triggered checkpoint 28014 | -6/Garrison | Garrison Relay disabled 28085 | -6/Garrison | Found embedded Infiltrators 28304 | -6/Garrison | Entered Factory 28304 | -6/Factory | Accompanied by 5 allies 28654 | -6/Factory | First assault squad dispatched 28829 | -6/Factory | Joined by Warlord Ranger squad 28967 | -6/Factory | Joined by Warlord Chimera squad 28975 | -6/Factory | Garrison activated, responded to threat 29178 | -6/Factory | Joined by Warlord Infantry squad 29482 | -6/Factory | Build established: Mutant 29806 | -6/Factory | Discovered exit to Lower Caves (range 87) 30080 | -6/Factory | Incoming assault squad redirected 30084 | -6/Factory | Incoming assault squad redirected 30138 | -6/Factory | Build established: Tank 30180 | -6/Factory | Joined by Warlord Pyro squad 30248 | -6/Factory | Entered Lower Caves 30674 | -6/Lower Caves | A Derelict revealed a hidden shortcut to a safe place 30808 | -6/Lower Caves | Encountered a Warlord checkpoint 30948 | -6/Lower Caves | Discovered new exit (range 58) 31068 | -6/Lower Caves | Build established: Mutant 31134 | -6/Lower Caves | Learned Factory terminal intel 32135 | -6/Lower Caves | Entered Zion 32248 | -6/Zion | System corruption cleaned by Quarantine Array 32436 | -6/Zion | Gained Derelict followers 32455 | -6/Zion | Discovered new exit (range 8) 32569 | -6/Zion | Build established: Tank 32955 | -6/Zion | Build established: Mutant 33094 | -6/Zion | Received a hallucinogenic algorithm 33680 | -6/Zion | Learned Factory terminal intel 33902 | -6/Zion | Found Prototype Device 33902 | -6/Zion | Identified Mobile Refinery Mk. CCLXVII 34142 | -6/Zion | Found Prototype Device 34142 | -6/Zion | Identified Bomb Factory No. 2 34553 | -6/Zion | Found GAL Module 34757 | -6/Zion | Discovered new exit (range 4) 34757 | -6/Zion | Saw the warning signs outside the Deep Caves entrance 34774 | -6/Zion | Entered Deep Caves 34774 | -6/Deep Caves | Accompanied by 3 allies 34914 | -6/Deep Caves | Attacked by Z-Imprinter 34952 | -6/Deep Caves | Destroyed Z-Imprinter 35030 | -6/Deep Caves | Found Prototype Protection 35214 | -6/Deep Caves | Build established: Tank 35319 | -6/Deep Caves | Z-Facility disabled 35613 | -6/Deep Caves | Build established: Mutant 35790 | -6/Deep Caves | Discovered new exit (range 7) 36492 | -6/Deep Caves | Identified Zio. Weapon Casing 37175 | -6/Deep Caves | Found Zio. Weapon Casing 37528 | -6/Deep Caves | Build established: Scavenger-Mutant 37683 | -6/Deep Caves | Crushed by falling debris 37711 | -6/Deep Caves | Spotted as-40570 38114 | -6/Deep Caves | Destroyed as-40570 38534 | -6/Deep Caves | Exposed GOLEM chamber 38535 | -6/Deep Caves | Triggered Deep Caves wall 38535 | -6/Deep Caves | Spotted AS-86878 38543 | -6/Deep Caves | Spotted AS-00073 38553 | -6/Deep Caves | Spotted as-39844 38569 | -6/Deep Caves | Destroyed 24 combat bots 38572 | -6/Deep Caves | Core integrity fell below 20% 38624 | -6/Deep Caves | Lost 7 parts (1p2n3u1w) 38789 | -6/Deep Caves | Identified exit to Proximity Caves 39012 | -6/Deep Caves | Destroyed AS-00073 39098 | -6/Deep Caves | Found Unknown Device 39302 | -6/Deep Caves | Build established: Mutant 39612 | -6/Deep Caves | Spotted as-07918 39639 | -6/Deep Caves | Destroyed by as-07918 with Assembled Focal Cannon Last Messages --------------- 39165_ Acquired 2 matter. 39168_ The unstable cave ceiling collapses. 39207_ System corrupted: FCS attempts to trigger Enh. Gauss Cannon. 39207_ System corrupted: Enh. Gauss Cannon misfires. 39211_ The unstable cave ceiling collapses. 39219_ Acquired 7 matter. 39220_ The unstable cave ceiling collapses. 39251_ X,>Y%08LY1XG7EJM 66M 2OBXG/ 39300_ System corrupted: Matter fused (-5). 39325_ System corrupted: Heat flow error (+291). 39341_ Acquired 5 matter. 39374_ F186:|ARLGEEM%#N8YJS9G9XIFPBQL 39412_ System corrupted: Energy discharge (-350). 39464_ XO7A:B#7CJK7CN:B2QRMJSPLQ&,NX|WDYHW 39529_ System corrupted: Heat flow error (+161). 39560_ System corrupted: Energy discharge (-260). 39588_ System corrupted: Matter fused (-6). 39620_ Acquired 6 matter. 39635_ System corrupted: Energy discharge (-320). 39635_ Slug penetrates as-07918. Map ----- +----------------------------------------------------+ | | | | | | | | | | | | | | | | | | | | | | | | | | | | | ?????????????????????#???????????????????????????? | | ??????????????????###;##?????????????????????????? | | ???????????????#### ######???????????????????? | | ??####????????## ##???????????????? ?? | | ?## #??????## #####???????????? ## | | ?# #?????# ##?????????? | | ?? ##???????# #?????????? | | ???? ######### ###???????? | | ?????# " ## ##??????? | | ??????# """ ### #???????? | | ####???# ^ "####### "" ### #???????## | | ##?## ##??????# #@ ##?# #???????# | | ###a ##???????####### ##??# #????#### | | #??????????????# ###### #????# # | | #??########????## ##"### #????? | | #### # &!>#??????# #??????# | | ###[!! #??????# #######???????# | | ##?#!!* ####???##### G #????????????## | | #### #??## *###?????## ## #????????????# | | #??#####???# #???????# ####??????????# | | ##?????????# #???????# ##??????#### | | ##????????# #??####### #?????## # | | ########## #??# ### #?????# | | # #??# ##?????# | | #??# ###??????# | | #?## ## ##????????## | | ### #######??????????### | | ! ##??????????????????# | | !!! ####??????####?????????## | | " * #### ##???????### ####???????# | | !!! #### ##?????#### #????####" | | " ##??????# " #???## #" | | # "" ######???????#### #???# "# | | # "" #???????????????#### ##??# # | | " "## ##?????????????????# #### | | "### ###???????????????# ## | +----------------------------------------------------+ Best States ------------- Heat Dissipation 65 Coolant Potential 80 Energy Generation 27 Energy Capacity 1000 Matter Stores 300 Matter Capacity 300 Sight Range 22 Robot Scan Range 20 Terrain Scan Range 18 Terrain Scan Density 10 Jamming Range 12 Base Temperature (-) 100 Corruption Containment 8 Corruption Block 20 Armor Coverage 1025 Resistance: KI 25 Resistance: TH 20 Core Shielding 20 Utility Shielding 66 Weapon Shielding 100 Weapon Cycling 20 Evasion (%) 44 Targeting Accuracy 8 Target Analysis 5 Core Analysis 6 Recoil Reduction 4 Matter Filtering 30 Particle Charging 20 Kinecelleration 40 Offensive Hacking 20 Defensive Hacking 20 Trap Extractor Capacity 10 Item Schematics ----------------- Exp. Sensor Array | -8/Materials | Scanalyzed Mak. System Restoration Module | -8/Materials | Scanalyzed Arm. Wheel | -8/Materials | Scanalyzed Arm. Huge Wheel | -7/Factory | Scanalyzed Enh. Gauss Cannon | -7/Factory | Scanalyzed Neutrino Core | -7/Factory | Hacked Gatling Laser | -7/Factory | Hacked Combat Drone Bay | -7/Data Miner | Free Lgt. Regenerative Plating | -7/Data Miner | Free Cld. Aerolev Unit | -7/Data Miner | Free Gravity Neutralizer | -7/Data Miner | Free Antimatter Cannon | -7/Data Miner | Free Arm. Medium Treads | -7/Data Miner | Free Imp. Thermal Shield | -7/Data Miner | Free Adv. Plasma Cannon | -7/Data Miner | Free Adv. Terrain Scanner | -7/Data Miner | Free Lyr. Heavy Armor Plating | -7/Data Miner | Free Quantum Capacitor | -7/Data Miner | Free Matter Neutralizer | -7/Data Miner | Free Imp. Component Analysis Suite | -6/Zion | Archive Remote Shield | -6/Zion | Archive Adv. Cooling System | -6/Zion | Archive Hvy. Pick | -6/Zion | Archive Adv. Hacking Suite | -6/Zion | Archive Imp. System Restoration Module | -6/Zion | Archive Point Defense Array | -6/Zion | Archive Centrium Wheel | -6/Zion | Archive Imp. Core Shielding | -6/Zion | Archive Imp. Shock Absorption System | -6/Zion | Archive Hpw. Shock Rifle | -6/Zion | Archive Power Sword | -6/Zion | Archive Cloaking Device | -6/Zion | Archive Remote Force Field | -6/Zion | Archive Lrn. Phase Cannon | -6/Zion | Archive Robot Schematics ------------------ O-24 Administrator | -8/Materials | Hacked W-25 Informer | -7/Data Miner | Free C-17 Slicer | -7/Data Miner | Free B-48 Gladiator | -7/Data Miner | Free L-41 Fighter | -7/Data Miner | Free G-50 Soldier | -7/Data Miner | Free A-02 Transporter | -6/Zion | Archive R-06 Scavenger | -6/Zion | Archive Fabricated ------------ Imp. Deuterium Engine | x2 | -7/Factory | Preloaded I-25 Savior | x1 | -7/Factory | Preloaded Exp. Sensor Array | x1 | -7/Factory Adv. Datajack | x1 | -7/Factory | Preloaded Alien Tech Used ----------------- None Achievements -------------- None Challenges ------------ None Game ------ Seed GhostHelicalMachine Manual? 0 Play Time 06:03:23 Cumulative 561.7 hours Start 2023.03.09 @ 20:11:36 End 2023.03.10 @ 03:10:19 Sessions 1 Manual Loads 0 Difficulty Rogue Special Mode None Game No. 394 Rogue 394 Adventurer 0 Explorer 0 Win Type - Total 1 Types 1/0/0/0/0/0/0/0/0 Lore% 70 Gallery% 78 Achievement% 58 Wizard Run 0 Options --------- ASCII 0 Keyboard 0 Movement Mouse Keybinds 0 Fullscreen 1 Font 16/SmallcapsGlow Map View 75x55 Tactical HUD 1 Map Filters NONE Filters NONE Steam 1 RUN: d0472662-a268-46eb-adee-67196cb39c89